Workbook

Sheet -
A1: 宏亮装饰工程报价表
A2: 工程名称：天樾华园
A3: 户 型: 公司地址:
A4: 客户姓名： 联系方式：
A5: 公司电话：13610309057 15916124820
B6: 工 程 项 目 | C6: 数量 | D6: 单位 | E6: 材料
E7: 单价 | F7: 合计(元) | G7: 材料说明及等级(相关承包范围)
A8: 一、 泥水项目(以实际为准)
A9: 1 | B9: 地脚线 | C9: 82 | D9: m | E9: 25 | F9: =C9*E9 -> 2050 | G9: 含人工“海螺”牌32.5R水泥、沙
A10: 2 | B10: 凿地脚线 | C10: 82 | D10: m | E10: 15 | F10: =C10*E10 -> 1230 | G10: 含人工
A11: 3 | B11: 铺地砖 | C11: 87 | D11: ㎡ | E11: 45 | F11: =C11*E11 -> 3915 | G11: 含人工（800*800通铺）
A12: 4 | B12: 厨房,卫生间墙砖 | C12: 73 | D12: ㎡ | E12: 60 | F12: =C12*E12 -> 4380 | G12: 含人工（400*800）
A13: 5 | B13: 厨房,卫生间防水 | C13: 112 | D13: ㎡ | E13: 35 | F13: 3920 | G13: 含人工德高防水剂（厨卫墙地防水、阳台地防水）
A14: 6 | B14: 阳台，卫生间地面过水泥沙 | C14: 25 | D14: ㎡ | E14: 35 | F14: 875 | G14: 含人工
A15: 7 | B15: 卫生间架空 | C15: 2 | D15: 个 | E15: 800 | F15: 1600 | G15: 含人工“海螺”牌32.5R水泥、河沙,钢筋,人工及辅料。
A16: 8 | B16: 卫生间安装排水管 | C16: 2 | D16: 项 | E16: 300 | F16: 600 | G16: 含人工包联塑PVC排水管及配件
A17: 9 | B17: 降门头 | C17: 6 | D17: 个 | E17: 180 | F17: 1080 | G17: 含人工“海螺”牌32.5R水泥、河沙,钢筋,人工及辅料。
A18: 10 | B18: 安装地漏 | C18: 6 | D18: 个 | E18: 30 | F18: =C18*E18 -> 180 | G18: 含人工包地漏
A19: 11 | B19: 安装(坐/蹲厕) | C19: 2 | D19: 个 | E19: 100 | F19: 200 | G19: 含人工玻璃胶
A20: 12 | B20: 铺门槛石 | C20: 9 | D20: 条 | E20: 40 | F20: 360 | G20: 含人工
A21: 13 | B21: 封下水管 | C21: 8 | D21: 条 | E21: 180 | F21: 1440 | G21: 含人工及辅料
A22: 14 | B22: 客厅拆墙 | C22: 10 | D22: ㎡ | E22: 50 | F22: 500 | G22: 含人工
A23: 15 | B23: 房间窗台台面贴砖 | C23: 11 | D23: m | E23: 150 | F23: 1650 | G23: 含人工
A24: 16 | B24: 全屋打线槽 | C24: 1 | D24: 项 | E24: 900 | F24: 900 | G24: 含人工
A25: 17 | B25: 全屋补线槽 | C25: 1 | D25: 项 | E25: 500 | F25: 500 | G25: 含人工“海螺”牌32.5R水泥，沙
A26: 18 | B26: 全屋修补 | C26: 1 | D26: 项 | E26: 500 | F26: 500 | G26: 含人工“海螺”牌32.5R水泥，沙
A27: 小计: | F27: =SUM(F9:F26) -> 25880
A28: 二、 水电项目(以实际为准)
A29: 1 | B29: 装电 | C29: 118 | D29: 位 | E29: 75 | F29: =C29*E29 -> 8850 | G29: 人工、广东电缆线，4分日丰线管及配件（超出5位以上按实计数量计算）
A30: 2 | B30: 装水 | C30: 60 | D30: m | E30: 55 | F30: 3300 | G30: 含人工6分日丰PP-R瓷芯抗菌水管（绿色）及配件
A31: 3 | B31: 强电箱 | C31: 1 | D31: 个 | E31: 300 | F31: 300 | G31: 含人工改装强电箱
A32: 4 | B32: 弱电箱 | C32: 1 | D32: 个 | E32: 250 | F32: 250 | G32: 含人工多媒体箱
A33: 5 | B33: 水总阀 | C33: 1 | D33: 个 | E33: 80 | F33: 80 | G33: 含人工总阀
F34: =SUM(F29:F33) -> 12780
A35: 三、 木工项目(以实际为准)
A36: 1 | B36: 厨房,卫生间铝扣天花 | C36: 13.1 | D36: ㎡ | E36: 150 | F36: =C36*E36 -> 1965 | G36: 人工、龙骨起架，0.6厘扣板花纹双方商量确定
A37: 小计: | F37: =SUM(F36:F36) -> 1965
A38: 四、其他项目
A39: 1 | B39: 地砖辅料 | C39: 1 | D39: 项 | E39: 4000 | F39: =C39*E39 -> 4000 | G39: “海螺”牌32.5R水泥，沙
A40: 2 | B40: 墙砖辅料 | C40: 1 | D40: 项 | E40: 2500 | F40: 2500 | G40: 德高瓷砖胶
A41: 3 | B41: 石膏线 | C41: 86 | D41: m | E41: 18 | F41: 1548 | G41: 含人工穗华石膏线，石膏线腻子粉（花纹业主自选）
A42: 4 | B42: 刮塑 | C42: 360 | D42: ㎡ | E42: 20 | F42: 7200 | G42: 含人工刮塑三次、砂纸打磨平整
A43: 5 | B43: 刮塑PVC线条 | C43: 1 | D43: 项 | E43: 400 | F43: 400 | G43: PVC保护线条，AB胶/白乳胶
A44: 6 | B44: 油ICI | C44: 360 | D44: ㎡ | E44: 15 | F44: 5400 | G44: 含人工油一道底漆，二道面漆，打磨三次（增改颜色加收10元/㎡）多乐士，立邦
A45: 7 | B45: 全屋垃圾清理费 | C45: 1 | D45: 项 | E45: 2000 | F45: 2000 | G45: 含人工
A46: 8 | B46: 全屋材料搬运费 | C46: 1 | D46: 项 | E46: 1500 | F46: 1500 | G46: 含人工
A47: 9 | B47: 地面保护 | C47: 1 | D47: 项 | E47: 800 | F47: 800 | G47: 含人工、材料
A48: 10 | B48: 全屋五金安装 | C48: 1 | D48: 项 | E48: 500 | F48: 500 | G48: 含人工
A49: 11 | B49: 安装洗手盆 | C49: 2 | D49: 个 | E49: 80 | F49: 160 | G49: 含人工
A50: 小计: | F50: =SUM(F39:F49) -> 26008
A51: 总计: | F51: =F27+F34+F37+F50 -> 66633 | G51: （半包）
A52: 1 | B52: 电线规格:空调布线用4㎡专线,,插座线用2.5㎡线，照明线路灯线用1.5㎡电线.计位方式：一个开关计一位，一个二三插面板计一位，空气开关、空调、电脑、电话、电视一位按二位计，一个装饰灯计一位，灯带1米计一位，客厅大灯,音响，浴霸一位计三位。总电箱按单极开关算，漏电开关算四位，单极开关一个算一位，弱电箱算五个位
A53: 2 | B53: 本工程发生的物业管理处所交的一切费用均由业主自理（除施工工人出入证外）。
A54: 3 | B54: 本工程参考附件《装修平面图》计量。
A55: 4 | B55: 详细的水电改造、布设方案需要在签订协议后双方商量确定。
A56: 5 | B56: 本工程各项工程量已包含全部细节内容，不再另开项详细描述，所有工程以实际为准，如业主额外要求增加项目另计费
A57: 6 | B57: 本工程所贴瓷片，墙砖，刮塑，砌墙，防水，都不除门窗洞。
A58: 7 | B58: 业主自购材料自己包上楼
A59: 8 | B59: 施工时间为90天 （除国家法定假日以外）
A60: 甲 方: 乙 方:
A61: 日 期: 日 期:
